Cogmind - Beta 16 @@@ ROGUE MODE // 2025.10.22 @ 18:36:08 Player: zeyvai Result: Destroyed by as-07695 with Assembled F-torch Performance ------------- Evolutions (0) 0 Regions Visited (2) 400 Robots Destroyed (3) 15 Value Destroyed (134) 134 Prototype IDs (0) 0 Alien Tech Used (0) 0 Bonus (0) 0 TOTAL SCORE: 549 Bonus ------- None Cogmind --------- Core Integrity 0/250 Matter 203/300 Energy 178/250 System Corruption 0% Temperature Cool (42) Movement Walking (260) Ox2 Location -10/Mines Parts ------- > --- POWER (1) -------- Ion Engine > --- PROPULSION (2) --- Aluminum Leg Aluminum Leg > --- UTILITY (2) ------ Large Storage Unit Improved Sensor Array > --- WEAPON (2) ------- Heavy Mace > --- INVENTORY (15) --- Light Ion Engine Compact Wheel Compact Wheel Improved Heat Sink Small Storage Unit Seismic Detector Peak State ------------ > --- POWER ------------ Light Nuclear Core > --- PROPULSION ------- Light Treads Light Treads > --- UTILITY ---------- Large Storage Unit Improved Sensor Array > --- WEAPON ----------- EM Pulse Gun Small Laser > --- INVENTORY -------- Ion Engine Light Ion Engine Aluminum Leg Aluminum Leg Compact Wheel Compact Wheel Improved Heat Sink Small Storage Unit Seismic Detector Assault Rifle [Rating: 12] Favorites ----------- Power Light Nuclear Core Engine Ion Engine Power Core Light Nuclear Core Propulsion Light Treads Treads Light Treads Leg Aluminum Leg Utility Large Storage Unit Device Seismic Detector Storage Large Storage Unit Weapon EM Pulse Gun Energy Gun EM Pulse Gun Ballistic Gun Assault Rifle Special Weapon Mining Laser Impact Weapon Heavy Mace Build | -11 -10 -10 ------- Run | Yrd Mat Min Slots Evolved . | . . . Power . | . . . Propulsion . | . . . Utility . | . . . Weapon . | . . . Parts Attached 16 | 7 4 5 Power 3 | 2 1 . Engine 2 | 2 . . Core 1 | . 1 . Reactor . | . . . Propulsion 4 | 2 . 2 Treads 2 | 2 . . Leg 2 | . . 2 Wheel . | . . . Hover . | . . . Flight . | . . . Utility 4 | 1 2 1 Device 2 | . 1 1 Storage 2 | 1 1 . Processor . | . . . Hackware . | . . . Protection . | . . . Artifact . | . . . Weapon 5 | 2 1 2 Energy Gun 2 | 1 1 . Energy Cannon . | . . . Ballistic Gun 1 | 1 . . Ballistic Cannon . | . . . Launcher . | . . . Special Weapon 1 | . . 1 Impact Weapon 1 | . . 1 Slashing Weapon . | . . . Piercing Weapon . | . . . Special Melee Weapon . | . . . Unidentified Prototypes . | . . . Parts Lost 7 | . . 7 Power 1 | . . 1 Propulsion 2 | . . 2 Utility . | . . . Weapon 4 | . . 4 Highest Loss Streak 7 | . . 7 To Critical Strikes . | . . . Average Backups 8 | 3 7 9 Power 1 | . 1 1 Propulsion 3 | 2 4 3 Utility 1 | . 1 2 Weapon 1 | . 1 1 Tool/Special . | . . . Unused Backups 3 | . . 3 Power . | . . . Propulsion 2 | . . 2 Utility 1 | . . 1 Weapon . | . . . Tool/Special . | . . . Average Slot Usage (%) 94 | . 92 97 Engine 3 | . 6 1 Core 9 | . 8 11 Treads 26 | . 28 24 Leg 1 | . . 2 Device 11 | . 9 14 Storage 14 | . 14 14 Energy Gun 17 | . 12 23 Ballistic Gun 7 | . 13 1 Peak Build Rating 12 | 6 10 12 Average Rating 8 | 4 8 10 On Entrance 5 | . 6 10 Avg Prop Armor Cover (%) . | . . . Naked Turns . | . . . Heaviest Build 31 | 14 30 31 Greatest Support 40 | 40 40 40 Greatest Overweight (x) 2 | . . 2 Average Overweight (x) . | . . . Largest Inventory Capacity 15 | 8 15 15 Average Capacity 13 | 7 13 15 Most Carried 11 | 6 11 11 Average Carried 8 | 3 7 9 Final Capacity 15 | 8 15 15 Final Carried 9 | 6 9 6 Class Distribution -------------------- 100% | Mutant Dominant Class ---------------- Mutant | -10/Materials Mutant | -10/Mines Resources | -11 -10 -10 ----------- Run | Yrd Mat Min Matter Collected 310 | 148 110 52 Remotely . | . . . Salvage Created 136 | . 110 26 Parts 8 | . 6 2 Haulers Intercepted . | . . . Recyclers Shooed . | . . . Parts Field Recycled . | . . . Retrieved Matter . | . . . Parts Self-Destructed . | . . . Prevented . | . . . Parts Restored . | . . . Kills | -11 -10 -10 ------- Run | Yrd Mat Min Combat Hostiles Destroyed 3 | . 2 1 Guns 3 | . 2 1 Classes Destroyed 2 | . 1 1 Grunt 2 | . 2 . Demolisher 1 | . . 1 Best Kill Streak 2 | . 2 1 Combat Bots Only 2 | . 2 1 Max Kills in Single Turn 1 | . 1 1 Gunslinging . | . . . Exploded . | . . . Melee . | . . . Uniques/NPCs Destroyed . | . . . Combat | -11 -10 -10 -------- Run | Yrd Mat Min Hostile Shots Fired 31 | . 5 26 Missed 1 | . . 1 Hits 30 | . 5 25 Melee 2 | . . 2 Projectile 28 | . 5 23 AOE 19 | . . 19 Critical Strikes 1 | . . 1 Part Disruptions 1 | . . 1 Damage Taken 919 | . 69 850 Core 256 | . . 256 Absorbed by Shields . | . . . Regen/Repaired (Parts) 21 | . 21 . Core Remaining (%) 100 | 100 . . Volleys Fired 21 | . 4 17 Largest 2 | . 2 2 Hottest 100 | . 60 100 Shots Fired 26 | . 8 18 Gun 25 | . 8 17 Cannon . | . . . Launcher . | . . . Special 1 | . . 1 Kinetic 14 | . 4 10 Thermal 6 | . . 6 Explosive . | . . . Electromagnetic 6 | . 4 2 Robot Hit Streak 9 | . 4 9 Robot Miss Streak 3 | . 1 3 Penetration Max . | . . . Secondary Targets . | . . . Shots Hit Robots 17 | . 5 12 Core Hits 9 | . 4 5 Critical Kills . | . . . Critical Parts Destroyed . | . . . Critical Strikes . | . . . Melee Attacks 1 | . . 1 Impact 1 | . . 1 Slashing . | . . . Piercing . | . . . Sneak Attacks . | . . . Combat Hostiles . | . . . Follow-up Attacks . | . . . Damage Inflicted 276 | . 71 205 Guns 216 | . 71 145 Cannons . | . . . Explosions . | . . . Melee 60 | . . 60 Ramming . | . . . Kinetic 134 | . 13 121 Thermal 24 | . . 24 Explosive . | . . . Electromagnetic 58 | . 58 . Impact 60 | . . 60 Slashing . | . . . Piercing . | . . . Highest Corruption . | . . . Average Corruption . | . . . Corruption Purged . | . . . Corruption Blocked . | . . . Overload Shots . | . . . Overflow Damage 10 | . . 10 Projectiles . | . . . Explosions . | . . . Melee 10 | . . 10 Knockbacks . | . . . Impact . | . . . Kinetic . | . . . Secondary . | . . . Self-Inflicted Damage . | . . . Shots . | . . . Rammed . | . . . Targets Rammed . | . . . Kicked . | . . . Crushed . | . . . Highest Temperature 50 | . 33 50 Average Temperature 17 | . 18 16 Received Heat Transfer 222 | . 42 180 Siege Activations . | . . . Martial Activations . | . . . Shielding Activations . | . . . Robots Disrupted . | . . . Combat Hostiles . | . . . Robots Corrupted . | . . . Combat Hostiles . | . . . Parts Fried . | . . . Impact Corruptions 1 | . . 1 Robots Melted . | . . . Combat Hostiles . | . . . Parts Melted 1 | . . 1 Heat Transferred 50 | . . 50 Parts Sabotaged . | . . . Parts Stolen . | . . . Parts Stripped . | . . . Power Chain Reactions . | . . . Alert | -11 -10 -10 ------- Run | Yrd Mat Min Maximum Alert Level . | . . . Low Security (%) 100 | 100 100 100 Level 1 . | . . . Level 2 . | . . . Level 3 . | . . . Level 4 . | . . . Level 5 . | . . . High Security . | . . . Max Security . | . . . Peak Influence 51 | . 51 20 Initial . | . . . Average 6 | . 13 1 Influence Increases 101 | . 79 22 Destroy 0b10 Robot/C 60 | . 40 20 Destroy Leader 10 | . 10 . Successful Hack 28 | . 28 . Destroy Structure 3 | . 1 2 Influence Decreases 101 | . 79 22 Time Decay 89 | . 79 10 Lost Part 10 | . . 10 Lost Ally 2 | . . 2 Squads Dispatched 1 | . 1 . Investigation . | . . . Extermination . | . . . Reinforcement 1 | . 1 . Assault . | . . . Garrison . | . . . Intercept . | . . . Searches Triggered . | . . . Construction Impeded . | . . . Haulers Reinforced . | . . . Active Scanning Responses . | . . . Cargo Convoy Interrupts . | . . . Stealth | -11 -10 -10 --------- Run | Yrd Mat Min Distress Signals 2 | . 2 . Communications Jammed . | . . . Distress Signals . | . . . Times Spotted 11 | . 2 9 Peak Tracking Total 7 | . 2 7 Tactical Retreats . | . . . Traps | -11 -10 -10 ------- Run | Yrd Mat Min Traps Triggered 1 | . 1 . Indirectly . | . . . Trap Hack Attempts . | . . . Triggered . | . . . Disarmed . | . . . Reprogrammed . | . . . Reused . | . . . Traps Extracted . | . . . Installed . | . . . Triggered . | . . . Machines | -11 -10 -10 ---------- Run | Yrd Mat Min Machines Disabled . | . . . Max in Single Turn . | . . . Machines Repaired . | . . . Machines Dismantled . | . . . Machines Sabotaged . | . . . Overloaded Fab Kills . | . . . Hacking | -11 -10 -10 --------- Run | Yrd Mat Min Machines Accessed 5 | . 4 1 Terminals 3 | . 3 . Fabricators . | . . . Repair Stations 1 | . 1 . Recycling Units . | . . . Scanalyzers . | . . . Garrison Access . | . . . Total Hacks 14 | . 13 1 Successful 9 | . 8 1 Failed 5 | . 5 . Catastrophic 2 | . 2 . Database Lockouts . | . . . Manual . | . . . Terminals 7 | . 7 . Fabricators . | . . . Repair Stations 6 | . 6 . Recycling Units . | . . . Scanalyzers . | . . . Garrison Access . | . . . Terminal Hacks 4 | . 3 1 Open Door 1 | . . 1 Alert Level 1 | . 1 . Locate Traps 1 | . 1 . Zone Layout 1 | . 1 . Fabricator Hacks . | . . . Repair Station Hacks 5 | . 5 . Scan Component 3 | . 3 . Repair 2 | . 2 . Recycling Unit Hacks . | . . . Scanalyzer . | . . . Garrison Access Hacks . | . . . Unauthorized Hacks . | . . . Terminals . | . . . Fabricators . | . . . Repair Stations . | . . . Recycling Units . | . . . Scanalyzers . | . . . Garrison Access . | . . . Data Cores Recovered . | . . . Used . | . . . Hacking Detections 4 | . 4 . Full Trace Events 1 | . 1 . Feedback Events . | . . . Feedback Blocked . | . . . Robot Schematics Acquired . | . . . Robots Built . | . . . Authchips . | . . . Time . | . . . Total Robot Build Rating . | . . . Part Schematics Acquired . | . . . Parts Built . | . . . Authchips . | . . . Time . | . . . Total Part Build Rating . | . . . Part Studies Acquired . | . . . Parts Repaired 2 | . 2 . Time 79 | . 79 . Parts Recycled . | . . . Recycled Matter . | . . . Retrieved Matter . | . . . Retrieved Components . | . . . Parts Scanalyzed . | . . . Part Schematics Acquired . | . . . Parts Damaged . | . . . Bothacking | -11 -10 -10 ------------ Run | Yrd Mat Min Used RIF Installer . | . . . Robots Hacked . | . . . Non-combat . | . . . Combat . | . . . Robot Hacks Applied . | . . . Relay Couplers Released . | . . . Fabnet Peak Effective % . | . . . Robots Rewired . | . . . Allies Hacked . | . . . Hacks Repelled . | . . . Allies | -11 -10 -10 -------- Run | Yrd Mat Min Total Allies 2 | . . 2 Largest Group 2 | . . 2 Highest-Rated Group 46 | . . 46 Highest-Rated Ally 31 | . . 31 Total Orders . | . . . Ally Attacks 2 | . . 2 Total Damage 46 | . . 46 Kills . | . . . Allies Corrupted . | . . . Allies Melted . | . . . Intel | -11 -10 -10 ------- Run | Yrd Mat Min Active Infowar (turns) 551 | . 245 306 Sensors 207 | . . 207 Seismic 344 | . 245 99 Robot Analysis Total . | . . . Derelict Logs Recovered 1 | . . 1 Drone Launches . | . . . Drone Recoveries . | . . . Exploration | -11 -10 -10 ------------- Run | Yrd Mat Min Turns Passed 733 | 81 345 307 Spaces Moved 350 | 42 148 160 Core 4 | 4 . . Treads 340 | 38 148 154 Legs 6 | . . 6 Wheels . | . . . Hover . | . . . Flight . | . . . Fastest Speed 50 | 50 160 160 Average Speed 159 | 149 160 161 Slowest Speed 260 | 160 160 260 Overloaded Moves . | . . . Propulsion Burnouts . | . . . Robots Hopped . | . . . Potential Cave-ins . | . . . Cave-ins Triggered . | . . . Exploration Rate (%) 26 | 4 36 39 Regions Visited 2 Branch Regions 1 Pre-discovered Areas . | . . . Known Exits Taken . | . . . Unknown Exits Taken 2 | 1 1 . Scrap Searched 1 | . . 1 Spaces Dug . | . . . Terrain Destroyed . | . . . Melee . | . . . Projectile . | . . . AOE . | . . . Terrain Rammed . | . . . Walls Destroyed . | . . . Machines Disabled . | . . . Actions | -11 -10 -10 --------- Run | Yrd Mat Min Total 497 | 60 248 189 Wait 82 | . 82 . Move 348 | 41 147 160 Hop . | . . . Pick Up 23 | 12 8 3 Fast Attach . | . . . Attach 18 | 6 5 7 Detach 2 | . 1 1 Swap 2 | 1 1 . Drop . | . . . Fire 21 | . 4 17 Melee 1 | . . 1 Ram . | . . . Kick . | . . . Crush . | . . . Escape Stasis . | . . . Rewire . | . . . Trap . | . . . Miscellaneous . | . . . Route ------- -11/Scrapyard -10/Materials -10/Mines History --------- Turn | Location | Event 34 | -11/Scrapyard | Discovered new exit (range 15) 82 | -11/Scrapyard | Entered Materials 83 | -10/Materials | Met a group of wandering Federalists 302 | -10/Materials | Build established: Mutant 302 | -10/Materials | Discovered new exit (range 12) 366 | -10/Materials | Repaired Broken Imp. Heat Sink 393 | -10/Materials | Repaired EM Pulse Gun 427 | -10/Materials | Entered Mines 512 | -10/Mines | Met a Derelict who couldn't figure out how to use a Trap Extractor 637 | -10/Mines | Assembled infested the area 642 | -10/Mines | Assisted by a Guerilla fighting off Assembled 687 | -10/Mines | Core integrity fell below 50% 693 | -10/Mines | Core integrity fell below 20% 711 | -10/Mines | Lost 3 allies 734 | -10/Mines | Destroyed by as-07695 with Assembled F-torch Last Messages --------------- 00714_ The unstable cave ceiling collapses. 00714_ K-01 Serf collects debris. 00715_ The unstable cave ceiling collapses. 00719_ Critical hit (Burn: +80). 00720_ The unstable cave ceiling collapses. 00720_ K-01 Serf collects debris. 00722_ The unstable cave ceiling collapses. 00722_ Assault Rifle destroyed. 00725_ K-01 Serf collects debris. 00727_ Acquired Mining Laser. 00728_ K-01 Serf collects debris. 00730_ The unstable cave ceiling collapses. 00731_ Mining Laser destroyed. 00732_ The unstable cave ceiling collapses. 00732_ U-05 Engineer builds a Wall. 00732_ K-01 Serf collects debris. 00733_ Destroyed Asb. Blade. 00733_ as-83035 system corrupted by crushing effect. 00734_ The unstable cave ceiling collapses. Map ----- +----------------------------------------------------+ | #????????????????????????????????????????? | | "" """ #????????????????????????????????????????? | | "" """ #????????????????????????????????????????? | | "" """ #????????????????????????????????????????? | | #????????????????????????????????????????? | | "" """ #????????????????????????????????????????? | | "" """ #????????????????????????????????????????? | | "" """ #????????????????????????????????????????? | | #????????????????????????????????????????? | | "" """ #????????????????????????????????????????? | | "" """ #????????????????????????????????????????? | | "" """ #????????????????????????????????????????? | | #????????????????????????????????????????? | | ### #####??????? ????????????????????????????????? | | ??# #????????? ???????????????????????????????? | | #?# #?????????? ??????????????????????????????? | | ### ??????????# #??###????????????????????????? | | ####??????????# ### ##??????????????????????? | | #????????????## #????#####?????????????? | | ##???????????# ##### ##????????????? | | ##?????????## a ### # ?????????????? | | #?????????? a% ??????????????? | | ##?####??????# a % ????????????????? | | # ### ##???????? # =!* ?????????????????? | | # #??????????# !aaa # #??????????????????? | | #??????????# a@# ##??????????????????? | | ### ##???????#### k ##?????????????????? | | ###?### #????????# #?????????????????? | | ?###??# #????????# ## # #?????????????????? | | ## #?# #######?????# # #####?????????????? | | # ## ##????# ## #?????????????? | | ##???# # #?????????????? | | """ ## # # ## #???????? | | # """ ## ## #### ## ####??#####?????????? | | ## """ ##??### #??# # #?????????????????? | | ?## ###?????# #??## ####?????????????????? | | ??# ##???????# #???### ##??????????????????? | | ??# ##????????# #????##u ##???????????????????? | | ??# ##????????# #?????# ##??????????????????? | | ??# ###??????# #?????# #?????????###??????? | | ??# #??????# ##???## #????????? ##?????? | | ??# #?????## ##?## #???????? ??????? | | ??## ##?????# ### ##???????? ???????? | | ???## ##?????## ##???????? #????????? | | ????# #?????## """ ########### #????????? | | ????# ####### """ #????????? | | ????# """ #????????? | | ????# ## ################????????? | | ????######## #### #???????????????????????? | | ???????????####??#### #???????????????????????? | +----------------------------------------------------+ Best States ------------- Heat Dissipation 25 Energy Generation 14 Energy Capacity 250 Matter Stores 268 Matter Capacity 300 Sight Range 16 Robot Scan Range 15 Terrain Scan Density 10 Evasion (%) 40 Recoil Reduction 2 Item Schematics ----------------- None Robot Schematics ------------------ None Fabricated ------------ Nothing Repaired ---------- Imp. Heat Sink | 80% | -10/Materials | Broken EM Pulse Gun | 71% | -10/Materials Studied --------- None Alien Tech Used ----------------- None Achievements -------------- There's More Where That Came From Challenges ------------ None Game ------ Seed ServoImpulseInitializer Manual? 0 Play Time 00:10:25 Cumulative 50.8 hours Start 2025.10.22 @ 18:26:23 End 2025.10.22 @ 18:36:08 Sessions 1 Manual Loads 0 Difficulty Rogue Special Mode None Game No. 57 Rogue 50 Adventurer 5 Explorer 2 Win Type - Total 0 Types 0/0/0/0/0/0/0/0/0/0 Lore% 19 Gallery% 34 Achievement% 15 Wizard Run 0 Options --------- Layout 1 ASCII 0 Keyboard 0 Movement Arrows Keybinds 0 Fullscreen 0 Font 32/Terminus Map View 50x40 Zoom Use 0% Tactical HUD 1 Map Filters NONE Filters NONE Steam 1 RUN: 59a01424-d651-4f6e-b619-601862883579